fUST/lending_fUST_20241003
["ID","MTS","AMOUNT","RATE_DAILY","PERIOD"]
[339756684,1727947847611,-151.0,0.00013628,2]
[339756685,1727947847620,-151.0,0.00013628,2]
[339756686,1727947847630,-151.0,0.00013628,2]
[339756687,1727947847639,-151.0,0.00013628,2]
[339756688,1727947847649,-9285.32653015,0.00013688,2]
[339756690,1727947961731,500.0,0.00010201,2]
[339756704,1727948702273,151.0,0.000209,120]
[339756713,1727948852176,-180.2065,0.00011128,2]
[339756714,1727948852201,-220.16294639,0.00011634,2]
[339756715,1727948895626,207.55291212,0.00010206,2]
[339756718,1727948948209,-172.43919626,0.00011534,2]
[339756719,1727948948234,-29.83705361,0.00011634,2]
[339756720,1727948948258,-250.0,0.00011666,2]
[339756721,1727948948285,-250.0,0.00011698,2]
[339756722,1727948948310,-250.0,0.0001173,2]
[339756723,1727948948335,-250.0,0.00011762,2]
[339756724,1727948948359,-250.0,0.00011794,2]
[339756725,1727948948382,-1217.81276324,0.00011823,2]
[339756726,1727948948408,-250.0,0.00011826,2]
[339756727,1727948948433,-250.0,0.00011858,2]
[339756728,1727948948456,-1137.25734233,0.0001189,2]
[339756729,1727948948479,-250.0,0.0001189,2]
[339756730,1727948948504,-250.0,0.00011922,2]
[339756731,1727948948527,-616.3711765,0.00011923,2]
[339756732,1727948948554,-250.0,0.00011953,2]
[339756733,1727948948577,-250.0,0.00011985,2]
[339756734,1727948948601,-250.0,0.00012017,2]
[339756735,1727948948624,-250.0,0.00012049,2]
[339756736,1727948948656,-300.0,0.00012063,2]
[339756737,1727948948685,-300.0,0.00012063,2]
[339756738,1727948948710,-590.79221331,0.00012064,2]
[339756739,1727948948733,-24900.0,0.00012064,2]
[339756740,1727948948759,-250.0,0.00012081,2]
[339756741,1727948948785,-250.0,0.00012113,2]
[339756742,1727948948813,-250.0,0.00012145,2]
[339756743,1727948948836,-250.0,0.00012177,2]
[339756744,1727948948861,-191.04734749,0.00012209,2]
[339756755,1727949032299,-147.54599991,0.00012117,2]
[339756812,1727949038278,-2772.9109774,0.00012117,2]
[339756835,1727949040252,-79.54302269,0.00012117,2]
[339756836,1727949040263,-500.0,0.00012122,2]
[339756837,1727949040273,-300.0,0.00012205,2]
[339756838,1727949040284,-300.0,0.00012205,2]
[339756839,1727949040294,-24900.0,0.00012206,2]
[339756840,1727949040304,-58.95265251,0.00012209,2]
[339756841,1727949040314,-151.0,0.0001221,2]
[339756842,1727949040323,-250.0,0.00012241,2]
[339756843,1727949040332,-408.226692,0.00012603,2]
[339756844,1727949040341,-167.2685899,0.00012657,2]
[339756845,1727949040351,-519.8711413,0.00012728,2]
[339756846,1727949040361,-500.0,0.00012941,2]
[339756847,1727949040370,-654.02697509,0.00012981,2]
[339756848,1727949040379,-420.7520826,0.00012981,2]
[339756849,1727949040389,-412.701024,0.00012981,2]
[339756850,1727949040398,-412.778192,0.00012981,2]
[339756851,1727949040408,-824.3261772,0.00012981,2]
[339756852,1727949040417,-412.6084831,0.00012981,2]
[339756853,1727949040427,-412.778192,0.00012981,2]
[339756854,1727949040436,-412.701024,0.00012981,2]
[339756855,1727949040446,-151.0,0.0001306,2]
[339756856,1727949040455,-600.0,0.00013296,2]
[339756857,1727949040465,-420.0,0.00013395,2]
[339756858,1727949040475,-7195.04478571,0.0001342,2]
[339756859,1727949040485,-1493.057266,0.00013422,2]
[339756860,1727949040495,-420.0,0.00013425,2]
[339756861,1727949040504,-4214.10711681,0.0001349,2]
[339756862,1727949040514,-289.84750774,0.00013528,2]
[339756863,1727949040523,-177.533,0.00013578,2]
[339756864,1727949040535,-598.94825024,0.00013588,2]
[339756865,1727949040546,-1493.057266,0.0001359,2]
[339756866,1727949040556,-14856.3863012,0.0001359,2]
[339756867,1727949040566,-54691.8924719,0.0001359,2]
[339756868,1727949040576,-87200.43852849,0.000136,2]
[339756869,1727949040587,-151.0,0.00013628,2]
[339756870,1727949040599,-151.0,0.00013628,2]
[339756871,1727949040608,-151.0,0.00013628,2]
[339756872,1727949040618,-229.492997,0.00013628,2]
[339756873,1727949040628,-14856.3863012,0.00013668,2]
[339756874,1727949040637,-500.0,0.00013673,2]
[339756875,1727949040646,-500.0,0.00013673,2]
[339756876,1727949040655,-331.43034234,0.00013673,2]
[339756877,1727949040664,-500.0,0.00013673,2]
[339756878,1727949040674,-500.0,0.00013673,2]
[339756879,1727949040683,-500.0,0.00013673,2]
[339756880,1727949040692,-500.0,0.00013673,2]
[339756881,1727949040701,-500.0,0.00013673,2]
[339756882,1727949040710,-500.0,0.00013673,2]
[339756883,1727949040720,-500.0,0.00013673,2]
[339756884,1727949040730,-500.0,0.00013673,2]
[339756885,1727949040741,-1361.0,0.00013673,6]
[339756886,1727949040750,-27345.9462359,0.00013678,2]
[339756887,1727949040760,-14856.3863012,0.00013678,2]
[339756888,1727949040771,-40786.63039655,0.00013678,2]
[339756904,1727949069132,1480.0,0.0001,2]
[339756905,1727949105066,500.0,0.00010201,2]
[339756911,1727949762458,151.0,0.000209,120]
[339756918,1727950065310,-250.0,0.00011759,2]
[339756919,1727950065333,-262.07811922,0.00012172,2]
[339756921,1727950163136,-24900.0,0.00011762,2]
[339756922,1727950163162,-300.0,0.00012172,2]
[339756923,1727950163186,-300.0,0.00012172,2]
[339756924,1727950163212,-2938.5274502,0.00012226,2]
[339756925,1727950163236,-250.0,0.00012315,2]
[339756926,1727950163261,-1042.43636678,0.00012339,2]
[339756927,1727950163286,-2871.2986912,0.00012339,2]
[339756928,1727950163315,-250.0,0.00012348,2]
[339756929,1727950163340,-250.0,0.00012382,2]
[339756930,1727950163366,-250.0,0.00012416,2]
[339756931,1727950163392,-250.0,0.0001245,2]
[339756932,1727950163416,-250.0,0.00012483,2]
[339756933,1727950163440,-69.57195469,0.00012517,2]
[339756984,1727950238276,-180.42804531,0.00012517,2]
[339756985,1727950238286,-250.0,0.00012551,2]
[339756986,1727950238296,-250.0,0.00012585,2]
[339756987,1727950238305,-239.71079392,0.00012603,2]
[339756988,1727950238388,-282.61128908,0.00012603,2]
[339756989,1727950238397,-250.0,0.00012619,2]
[339756990,1727950238407,-250.0,0.00012652,2]
[339756991,1727950238416,-250.0,0.00012686,2]
[339756993,1727950238426,-250.0,0.0001272,2]
[339756995,1727950238436,-250.0,0.00012754,2]
[339756997,1727950238446,-250.0,0.00012788,2]
[339756999,1727950238455,-250.0,0.00012821,2]
[339757001,1727950238465,-250.0,0.00012855,2]
[339757003,1727950238475,-250.0,0.00012889,2]
[339757005,1727950238484,-151.0,0.0001289,2]
[339757006,1727950238494,-250.0,0.00012923,2]
[339757007,1727950238505,-500.0,0.00012941,2]
[339757008,1727950238514,-250.0,0.00012956,2]
[339757010,1727950238523,-600.0,0.00013296,2]
[339757012,1727950238533,-300.0,0.00013318,2]
[339757014,1727950238542,-300.0,0.00013318,2]
[339757015,1727950238552,-7195.04478571,0.00013319,2]
[339757017,1727950238561,-878.007763,0.00013422,2]
[339757019,1727950238572,-585.33851,0.00013422,2]
[339757020,1727950238582,-182.567009,0.00013422,2]
[339757021,1727950238592,-163.821943,0.00013422,2]
[339757022,1727950238603,-193.23167182,0.00013568,2]
[339757023,1727950238612,-193.2316718,0.00013573,2]
[339757024,1727950238622,-193.2316718,0.00013578,2]
[339757025,1727950238631,-1000.0,0.00013578,2]
[339757026,1727950238641,-878.007763,0.0001359,2]
[339757027,1727950238651,-585.33851,0.0001359,2]
[339757028,1727950238660,-694.95757786,0.00013662,2]
[339757029,1727950238669,-37478.3411214,0.00013663,2]
[339757030,1727950238679,-4360.0934938,0.00013663,2]
[339757056,1727950240262,-20715.9592214,0.00013663,2]
[339757057,1727950240271,-112435.023364,0.00013668,2]
[339757058,1727950240281,-75228.1581457,0.00013668,2]
[339757059,1727950240290,-500.59661007,0.00013673,2]
[339757060,1727950240300,-500.67834229,0.00013673,2]
[339757061,1727950240310,-500.6063083,0.00013673,2]
[339757062,1727950240320,-331.43034234,0.00013673,2]
[339757063,1727950240330,-500.0,0.00013673,2]
[339757064,1727950240340,-500.0,0.00013673,2]
[339757065,1727950240349,-500.0,0.00013673,2]
[339757066,1727950240358,-500.0,0.00013673,2]
[339757067,1727950240368,-500.0,0.00013673,2]
[339757068,1727950240377,-503.5426258,0.00013673,2]
[339757069,1727950240387,-500.0,0.00013673,2]
[339757070,1727950240396,-500.0,0.00013673,2]
[339757071,1727950240406,-500.0,0.00013673,2]
[339757072,1727950240416,-500.0,0.00013673,2]
[339757073,1727950240425,-500.83049212,0.00013673,2]
[339757074,1727950240435,-500.0,0.00013673,2]
[339757075,1727950240444,-789.56253341,0.00013678,2]
[339757076,1727950240453,-37478.3411214,0.00013678,2]
[339757077,1727950240463,-25076.0527152,0.00013678,2]
[339757078,1727950240473,-151.0,0.00013678,2]
[339757079,1727950240483,-1877.88105791,0.00013678,2]
[339757080,1727950240492,-74956.6822427,0.00013678,2]
[339757081,1727950240502,-150456.316291,0.00013678,2]
[339757082,1727950240522,-150.0,0.00013678,2]
[339757083,1727950240531,-525.0,0.00013678,2]
[339757084,1727950240541,-1218.0,0.00013678,2]
[339757085,1727950240554,-199.58842923,0.00013687,2]
[339757086,1727950240563,-1807.71462141,0.00013687,2]
[339757087,1727950240572,-2053.84,0.00013688,2]
[339757088,1727950240581,-10000.0,0.00013688,2]
[339757089,1727950240590,-5000.0,0.00013688,2]
[339757090,1727950240599,-151.0,0.00013688,2]
[339757091,1727950240609,-151.0,0.00013688,2]
[339757092,1727950240618,-151.0,0.00013688,2]
[339757093,1727950240627,-151.0,0.00013688,2]
[339757094,1727950240637,-151.0,0.00013688,2]
[339757096,1727950240646,-151.0,0.00013688,2]
[339757098,1727950240656,-151.0,0.00013688,2]
[339757100,1727950240665,-151.0,0.00013688,2]
[339757101,1727950240674,-151.0,0.00013688,2]
[339757103,1727950240684,-203.742163,0.00013688,2]
[339757105,1727950240694,-151.0,0.00013688,2]
[339757107,1727950240703,-151.0,0.00013688,2]
[339757109,1727950240713,-151.0,0.00013688,2]
[339757110,1727950240723,-151.0,0.00013688,2]
[339757112,1727950240732,-151.0,0.00013688,2]
[339757114,1727950240742,-151.0,0.00013688,2]
[339757116,1727950240751,-151.0,0.00013688,2]
[339757118,1727950240760,-151.0,0.00013688,2]
[339757119,1727950240770,-151.0,0.00013688,2]
[339757121,1727950240779,-151.0,0.00013688,2]
[339757122,1727950240789,-25076.0527152,0.00013688,2]
[339757123,1727950240798,-6521.684099,0.0001369,2]
[339757124,1727950240807,-548.03296186,0.00013697,2]
[339757126,1727950240816,-478.13571489,0.00013698,2]
[339757127,1727950240826,-500.22584646,0.00013698,2]
[339757128,1727950240835,-500.0,0.00013698,2]
[339757129,1727950240844,-500.0,0.00013698,2]
[339757130,1727950240853,-500.0,0.00013698,2]
[339757131,1727950240863,-500.0,0.00013698,2]
[339757132,1727950240872,-151.472298,0.00013698,2]
[339757133,1727950240881,-500.0,0.00013698,2]
[339757134,1727950240891,-151.0,0.00013698,2]
[339757135,1727950240900,-151.0,0.00013698,2]
[339757136,1727950240910,-151.0,0.00013698,2]
[339757137,1727950240919,-151.0,0.00013698,2]
[339757138,1727950240929,-211.05042,0.00013698,2]
[339757139,1727950240939,-500.0,0.00013698,2]
[339757140,1727950240948,-500.0,0.00013698,2]
[339757141,1727950240958,-553.89391458,0.00013698,2]
[339757142,1727950240968,-500.0,0.00013698,2]
[339757143,1727950240978,-919.14,0.00013698,2]
[339757144,1727950240988,-502.39958623,0.00013698,2]
[339757145,1727950240998,-500.0,0.00013698,2]
[339757146,1727950241012,-500.0,0.00013698,2]
[339757147,1727950241022,-500.0,0.00013698,2]
[339757148,1727950241031,-151.0,0.00013698,2]
[339757149,1727950241041,-151.0,0.00013698,2]
[339757150,1727950241050,-151.0,0.00013698,2]
[339757151,1727950241060,-151.0,0.00013698,2]
[339757152,1727950241070,-151.0,0.00013698,2]
[339757153,1727950241079,-151.0,0.00013698,2]
[339757154,1727950241089,-151.0,0.00013698,2]
[339757155,1727950241098,-151.0,0.00013698,2]
[339757156,1727950241109,-151.0,0.00013698,2]
[339757157,1727950241121,-151.0,0.00013698,2]
[339757158,1727950241131,-151.0,0.00013698,2]
[339757159,1727950241141,-151.0,0.00013698,2]
[339757160,1727950241151,-151.0,0.00013698,2]
[339757161,1727950241160,-500.0,0.00013698,2]
[339757162,1727950241170,-252.311574,0.00013698,2]
[339757163,1727950241180,-771.66,0.00013698,2]
[339757164,1727950241189,-500.0,0.00013698,2]
[339757165,1727950241200,-500.0,0.00013698,2]
[339757166,1727950241211,-500.0,0.00013698,2]
[339757167,1727950241220,-500.0,0.00013698,2]
[339757168,1727950241231,-500.0,0.00013698,2]
[339757169,1727950241241,-500.0,0.00013698,2]
[339757170,1727950241251,-500.0,0.00013698,2]
[339757171,1727950241267,-500.0,0.00013698,2]
[339757172,1727950241276,-501.47465994,0.00013698,2]
[339757173,1727950241286,-525.82,0.00013698,2]
[339757174,1727950241295,-500.0,0.00013698,2]
[339757175,1727950241305,-526.75,0.00013698,2]
[339757176,1727950241315,-500.0,0.00013698,2]
[339757177,1727950241325,-500.0,0.00013698,2]
[339757178,1727950241484,-500.0,0.00013698,2]
[339757179,1727950241494,-500.0,0.00013698,2]
[339757180,1727950241507,-798.3,0.00013698,2]
[339757181,1727950241517,-500.0,0.00013698,2]
[339757182,1727950241527,-500.0,0.00013698,2]
[339757183,1727950241536,-500.0,0.00013698,2]
[339757184,1727950241546,-500.0,0.00013698,2]
[339757185,1727950241555,-500.0,0.00013698,2]
[339757186,1727950241565,-500.0,0.00013698,2]
[339757187,1727950241574,-500.0,0.00013698,2]
[339757188,1727950241583,-500.0,0.00013698,2]
[339757189,1727950241593,-500.0,0.00013698,2]
[339757190,1727950241602,-624.18314769,0.00013698,2]
[339757191,1727950241611,-500.0,0.00013698,2]
[339757192,1727950241621,-504.23843504,0.00013698,2]
[339757193,1727950241630,-1000.0,0.00013698,2]
[339757194,1727950241640,-500.0,0.00013698,2]
[339757195,1727950241650,-500.0,0.00013698,2]
[339757196,1727950241659,-500.0,0.00013698,2]
[339757197,1727950241668,-542.3,0.00013698,2]
[339757198,1727950241678,-500.0,0.00013698,2]
[339757199,1727950241688,-500.0,0.00013698,2]
[339757200,1727950241697,-500.0,0.00013698,2]
[339757201,1727950241706,-500.0,0.00013698,2]
[339757202,1727950241716,-500.0,0.00013698,2]
[339757203,1727950241726,-500.9292732,0.00013698,2]
[339757204,1727950241735,-500.0,0.00013698,2]
[339757205,1727950241745,-500.0,0.00013698,2]
[339757206,1727950241758,-151.0,0.00013698,2]
[339757207,1727950241768,-500.0,0.00013698,2]
[339757208,1727950241777,-151.0,0.00013698,2]
[339757209,1727950241786,-501.90754559,0.00013698,2]
[339757210,1727950241795,-500.0,0.00013698,2]
[339757211,1727950241805,-527.94478923,0.00013698,2]
[339757212,1727950241815,-501.41258368,0.00013698,2]
[339757213,1727950241824,-500.0,0.00013698,2]
[339757214,1727950241834,-196.18114167,0.00013698,2]
[339757215,1727950241843,-802.08,0.00013698,2]
[339757216,1727950241852,-500.19449097,0.00013698,2]
[339757217,1727950241861,-500.0,0.00013698,2]
[339757218,1727950241871,-500.0,0.00013698,2]
[339757219,1727950241882,-500.0,0.00013698,2]
[339757220,1727950241894,-500.0,0.00013698,2]
[339757221,1727950241903,-500.0,0.00013698,2]
[339757222,1727950241913,-958.65,0.00013698,2]
[339757223,1727950241925,-1370.84,0.00013698,2]
[339757224,1727950241935,-500.0,0.00013698,2]
[339757225,1727950241945,-151.0,0.00013698,2]
[339757226,1727950241955,-500.0,0.00013698,2]
[339757227,1727950241964,-151.0,0.00013698,2]
[339757228,1727950241974,-500.0,0.00013698,2]
[339757229,1727950241984,-500.0,0.00013698,2]
[339757230,1727950241993,-500.0,0.00013698,2]
[339757231,1727950242003,-500.0,0.00013698,2]
[339757232,1727950242016,-620.32256191,0.00013698,2]
[339757233,1727950242026,-500.0,0.00013698,2]
[339757234,1727950242036,-213.39040986,0.00013698,2]
[339757235,1727950242045,-500.0,0.00013698,2]
[339757236,1727950242055,-500.0,0.00013698,2]
[339757237,1727950242064,-502.8,0.00013698,2]
[339757238,1727950242073,-500.0,0.00013698,2]
[339757239,1727950242083,-500.0,0.00013698,2]
[339757240,1727950242092,-234.78721802,0.00013698,2]
[339757241,1727950242113,-265.21278198,0.00013698,2]
[339757242,1727950242125,-500.0,0.00013698,2]
[339757243,1727950242135,-808.89,0.00013698,2]
[339757244,1727950242145,-500.0,0.00013698,2]
[339757245,1727950242155,-500.0,0.00013698,2]
[339757246,1727950242165,-78.95627606,0.00013698,2]
[339757290,1727950313524,500.0,0.00010201,2]
[339757291,1727950360678,156.0,0.000209,120]
[339757301,1727950978301,1000.0,0.0002101,120]
[339757314,1727951245362,-300.0,0.00011769,2]
[339757315,1727951245386,-300.0,0.00011769,2]
[339757316,1727951245413,-74.2619143,0.0001177,2]
[339757318,1727951309089,500.0,0.00010201,2]
[339757331,1727951348315,-300.0,0.00011769,2]
[339757332,1727951348338,-300.0,0.00011769,2]
[339757333,1727951348362,-20416.165628,0.0001177,2]
[339757334,1727951348384,-487.02940715,0.00012122,2]
[339757335,1727951348406,-2000.0,0.000122,2]
[339757336,1727951348428,-185.17019965,0.000123,2]
[339757337,1727951414538,151.0,0.000209,120]
[339757358,1727951432398,-164.58219,0.00012287,2]
[339757360,1727951432408,-213.38548795,0.000123,2]
[339757362,1727951432418,-164.58219,0.00012321,2]
[339757364,1727951432428,-164.58219,0.00012355,2]
[339757366,1727951432438,-164.58219,0.00012389,2]
[339757369,1727951432448,-128.28575205,0.00012422,2]
[339757611,1727951438548,-36.29643795,0.00012422,2]
[339757612,1727951438558,-164.58219,0.00012456,2]
[339757613,1727951438569,-164.58219,0.0001249,2]
[339757614,1727951438578,-164.58219,0.00012523,2]
[339757615,1727951438588,-164.58219,0.00012557,2]
[339757617,1727951438597,-150.93063958,0.00012591,2]
[339757623,1727951440628,-13.65155042,0.00012591,2]
[339757624,1727951440638,-496.205978,0.00012603,2]
[339757625,1727951440649,-164.58219,0.00012624,2]
[339757626,1727951440660,-164.58219,0.00012658,2]
[339757627,1727951440671,-164.58219,0.00012692,2]
[339757628,1727951440680,-164.58219,0.00012726,2]
[339757629,1727951440690,-164.58219,0.00012759,2]
[339757630,1727951440700,-164.58219,0.00012793,2]
[339757631,1727951440710,-164.58219,0.00012827,2]
[339757632,1727951440719,-164.58219,0.0001286,2]
[339757633,1727951440736,-51.07603822,0.00012894,2]
[339757634,1727951440751,-113.50615178,0.00012894,2]
[339757635,1727951440763,-164.58219,0.00012928,2]
[339757636,1727951440774,-393.61342742,0.00012941,2]
[339757637,1727951440784,-300.0,0.0001298,2]
[339757638,1727951440794,-300.0,0.0001298,2]
[339757639,1727951440804,-151.0,0.0001298,2]
[339757640,1727951440813,-81.42798579,0.00013,2]
[339757641,1727951440825,-1918.57201421,0.00013,2]
[339757642,1727951440835,-825.2169662,0.000131,2]
[339757643,1727951440848,-500.0,0.000133,2]
[339757644,1727951440858,-500.0,0.000133,2]
[339757645,1727951440867,-500.0,0.000133,2]
[339757646,1727951440877,-500.0,0.000133,2]
[339757647,1727951440887,-500.0,0.000133,2]
[339757648,1727951440897,-500.0,0.000133,2]
[339757649,1727951440907,-500.0,0.000133,2]
[339757650,1727951440917,-500.0,0.000133,2]
[339757651,1727951440926,-221.95782853,0.000133,2]
[339757652,1727951440936,-498.7112254,0.00013331,2]
[339757653,1727951440945,-1193.58064669,0.000135,2]
[339757654,1727951440955,-1004.14108593,0.000136,2]
[339757655,1727951440965,-1000.0,0.00013631,2]
[339757656,1727951440977,-1000.0,0.0001364,2]
[339757657,1727951440988,-350.55244638,0.00013673,2]
[339757658,1727951440998,-500.0,0.00013673,2]
[339757659,1727951441008,-500.0,0.00013673,2]
[339757661,1727951441018,-500.49907927,0.00013673,2]
[339757662,1727951441028,-500.0,0.00013673,2]
[339757664,1727951441038,-500.0,0.00013673,2]
[339757665,1727951441047,-500.0,0.00013673,2]
[339757666,1727951441057,-500.0,0.00013673,2]
[339757667,1727951441066,-500.0,0.00013673,2]
[339757668,1727951441077,-322.660334,0.00013673,2]
[339757669,1727951441087,-500.0,0.00013673,2]
[339757670,1727951441096,-6236.8361091,0.00013674,2]
[339757671,1727951441106,-151.0,0.00013678,2]
[339757672,1727951441116,-150.0,0.0001368,2]
[339757673,1727951441126,-525.0,0.0001368,2]
[339757674,1727951441136,-1216.352,0.0001368,2]
[339757675,1727951441146,-284.579,0.0001368,2]
[339757676,1727951441156,-463.3050519,0.00013688,2]
[339757677,1727951441166,-151.0,0.00013688,2]
[339757678,1727951441175,-151.0,0.00013688,2]
[339757679,1727951441185,-151.0,0.00013688,2]
[339757680,1727951441195,-151.0,0.00013688,2]
[339757681,1727951441206,-151.0,0.00013688,2]
[339757682,1727951441215,-151.0,0.00013688,2]
[339757683,1727951441227,-151.0,0.00013688,2]
[339757684,1727951441237,-58701.60159941,0.00013688,2]
[339757700,1727951446627,-23462.07580876,0.00013688,2]
[339757707,1727951961206,-300.0,0.00011913,2]
[339757708,1727951961230,-300.0,0.00011913,2]
[339757709,1727951961252,-21879.2104038,0.00011914,2]
[339757710,1727951961275,-387.815358,0.00012603,2]
[339757711,1727951961299,-162.65286,0.00012646,2]
[339757712,1727951961322,-162.65286,0.0001265,2]
[339757713,1727951961344,-162.65286,0.00012653,2]
[339757714,1727951961367,-480.4233307,0.00012657,2]
[339757715,1727951961392,-162.65286,0.00012657,2]
[339757716,1727951961415,-162.65286,0.00012661,2]
[339757717,1727951961439,-162.65286,0.00012665,2]
[339757718,1727951961462,-162.65286,0.00012669,2]
[339757719,1727951961485,-162.65286,0.00012673,2]
[339757720,1727951961508,-162.65286,0.00012677,2]
[339757721,1727951961530,-162.65286,0.00012681,2]
[339757722,1727951961553,-26.0223075,0.00012685,2]
[339757734,1727952431164,-471.39568,0.00012603,2]
[339757735,1727952431189,-8.04338868,0.00012685,2]
[339757736,1727952467117,151.0,0.000209,120]
[339757742,1727952553113,-172.761836,0.00012327,2]
[339757802,1727952632710,-1543.08185825,0.000125,2]
[339758056,1727952639200,-6522.91814175,0.000125,2]
[339758058,1727952639215,-172.761836,0.00012541,2]
[339758060,1727952639226,-128.58716382,0.00012685,2]
[339758062,1727952639235,-162.65286,0.00012689,2]
[339758064,1727952639244,-162.65286,0.00012693,2]
[339758066,1727952639254,-162.65286,0.00012697,2]
[339758067,1727952639263,-162.65286,0.00012701,2]
[339758068,1727952639273,-162.65286,0.00012705,2]
[339758069,1727952639283,-162.65286,0.00012709,2]
[339758071,1727952639292,-172.761836,0.00012755,2]
[339758073,1727952639301,-172.761836,0.00012969,2]
[339758075,1727952639312,-6236.8361091,0.00013321,2]
[339758076,1727952639321,-300.0,0.00013567,2]
[339758077,1727952639331,-300.0,0.00013567,2]
[339758078,1727952639340,-2575.18341342,0.00013568,2]
[339758079,1727952639352,-2013.20167759,0.00013568,2]
[339758080,1727952639362,-189.615,0.0001357,2]
[339758081,1727952639371,-922.33009629,0.00013588,2]
[339758082,1727952639381,-16352.81259825,0.00013598,2]
[339758083,1727952639390,-725.37326492,0.00013598,2]
[339758084,1727952639400,-1738.60157652,0.00013632,2]
[339758085,1727952639410,-500.0,0.0001365,2]
[339758086,1727952639419,-500.0,0.0001365,2]
[339758087,1727952639428,-500.0,0.0001365,2]
[339758088,1727952639437,-500.0,0.0001365,2]
[339758089,1727952639446,-500.0,0.0001365,2]
[339758090,1727952639455,-500.0,0.0001365,2]
[339758091,1727952639469,-500.0,0.0001365,2]
[339758092,1727952639479,-511.33455145,0.0001365,2]
[339758093,1727952639487,-150.0,0.00013657,2]
[339758094,1727952639497,-500.0,0.0001366,2]
[339758095,1727952639506,-500.0,0.0001366,2]
[339758096,1727952639514,-500.0,0.0001366,2]
[339758097,1727952639524,-500.0,0.0001366,2]
[339758098,1727952639533,-3947.81266702,0.00013668,2]
[339758099,1727952639542,-196720.582692,0.00013668,2]
[339758100,1727952639551,-168502.772192,0.00013668,2]
[339758101,1727952639560,-500.0,0.00013673,2]
[339758102,1727952639570,-503.5426258,0.00013673,2]
[339758103,1727952639579,-616.0334139,0.00013673,2]
[339758104,1727952639589,-500.67834229,0.00013673,2]
[339758105,1727952639598,-500.59661007,0.00013673,2]
[339758106,1727952639607,-500.0,0.00013673,2]
[339758107,1727952639616,-500.6063083,0.00013673,2]
[339758108,1727952639626,-500.0,0.00013673,2]
[339758109,1727952639820,-500.0,0.00013673,2]
[339758110,1727952639833,-331.43034234,0.00013673,2]
[339758111,1727952639843,-500.0,0.00013673,2]
[339758112,1727952639853,-500.0,0.00013673,2]
[339758113,1727952639863,-500.0,0.00013673,2]
[339758115,1727952639873,-500.0,0.00013673,2]
[339758117,1727952639883,-500.0,0.00013673,2]
[339758119,1727952639893,-500.0,0.00013673,2]
[339758121,1727952639903,-503.11341653,0.00013673,2]
[339758123,1727952639913,-503.24524112,0.00013673,2]
[339758125,1727952639922,-500.83049212,0.00013673,2]
[339758127,1727952639932,-500.0,0.00013673,2]
[339758129,1727952639942,-39344.1165383,0.00013678,2]
[339758131,1727952639951,-33700.5544384,0.00013678,2]
[339758133,1727952639962,-150.303,0.00013679,2]
[339758135,1727952639971,-525.945,0.00013679,2]
[339758137,1727952639981,-1218.0,0.00013679,2]
[339758139,1727952639991,-39344.1165383,0.00013688,2]
[339758141,1727952640005,-67401.1088768,0.00013688,2]
[339758143,1727952640015,-1512.45780304,0.0001369,2]
[339758145,1727952640024,-150.01,0.00013697,2]
[339758146,1727952640033,-2228.11681113,0.00013697,2]
[339758148,1727952640043,-151.0,0.00013698,2]